[Event "Moscow-Open 2021_A"]
[Site "Moscow, Russia"]
[Date "2021.02.21"]
[Round "2.3"]
[White "Chuklin, Ivan"]
[Black "Iljiushenok, Ilia"]
[Result "0-1"]
[ECO "B15"]
[WhiteElo "2181"]
[BlackElo "2534"]
[Annotator "zimin"]
[PlyCount "80"]
[EventDate "2021.??.??"]
[TimeControl "90+30"]
[WhiteClock "1:32:36"]
[BlackClock "1:31:48"]

{[%evp 0,63,24,28,28,-8,69,37,50,32,36,11,36,8,13,13,28,31,31,27,21,7,-3,20,19,
15,27,12,21,-7,22,-10,5,-6,30,-120,-116,-133,155,0,0,-142,-145,-142,-142,-226,
-256,-300,-303,-303,-303,-303,-283,-283,-283,-302,-302,-518,-297,-330,-323,
-270,-273,-401,-230,-204]} 1. d4 d5 2. e4 {[%emt 0:00:00]} c6 {[%emt 0:00:00]}
3. Nd2 {[%emt 0:04:52]} dxe4 {[%emt 0:00:10]} 4. Nxe4 {[%emt 0:00:04]} Nf6 {
[%emt 0:00:03]} 5. Nxf6+ {[%emt 0:00:00]} exf6 {[%emt 0:00:05]} 6. c3 {[%emt 0:
00:12]} Bd6 {[%emt 0:00:22]} 7. Bd3 {[%emt 0:00:06]} Be6 {[%emt 0:00:00]} 8.
Ne2 {[%emt 0:00:21]} Qc7 {[%emt 0:01:10]} 9. h3 {[%emt 0:01:44]} Nd7 {[%emt 0:
01:20]} 10. O-O {[%emt 0:01:51]} O-O {[%emt 0:07:48]} 11. c4 {[%emt 0:03:29]}
Rfd8 {[%emt 0:09:36]} 12. Qc2 {[%emt 0:14:28]} Nf8 {[%emt 0:00:42]} 13. Be3 {
[%emt 0:07:00]} Re8 {[%emt 0:03:39]} 14. Rfd1 {[%emt 0:10:03]} Rad8 {[%emt 0:
03:55]} 15. Rab1 {[%emt 0:04:09]} Ng6 {[%emt 0:06:54]} 16. b4 {[%emt 0:02:17]}
Qc8 {[%emt 0:07:11]} 17. d5 {[%emt 0:20:30]} Bxh3 {[%emt 0:15:06]} 18. gxh3 {
[%emt 0:10:37]} Nh4 {[%emt 0:04:27]} 19. Bxh7+ {[%emt 0:08:06]} Kh8 {[%emt 0:
00:27]} 20. Rd4 {[%emt 0:00:12]} Qxh3 {[%emt 0:01:15]} 21. Rxh4 {[%emt 0:01:45]
} Qxh4 {[%emt 0:00:24]} 22. Bd3 {[%emt 0:00:06]} cxd5 {[%emt 0:01:20]} 23. cxd5
{[%emt 0:01:46]} Qh2+ {[%emt 0:11:44]} 24. Kf1 {[%emt 0:00:01]} Qh1+ {[%emt 0:
00:04]} 25. Ng1 {[%emt 0:00:06]} Bh2 {[%emt 0:00:04]} 26. Ke2 {[%emt 0:00:40]}
Bxg1 {[%emt 0:00:04]} 27. Qc4 {[%emt 0:03:57]} Kg8 {[%emt 0:05:46]} 28. Qg4 {
[%emt 0:02:19]} Rxe3+ {[%emt 0:05:05]} 29. Kxe3 {[%emt 0:03:25]} Qxd5 {[%emt 0:
00:05]} 30. Qe4 {[%emt 0:02:33]} Bxf2+ {[%emt 0:00:47]} 31. Ke2 {[%emt 0:00:06]
} Bb6 {[%emt 0:05:10]} 32. Qxd5 {[%emt 0:03:13]} Rxd5 {[%emt 0:00:01]} 33. Be4
Re5 {[%emt 0:00:44]} 34. Kf3 {[%emt 0:00:31]} Re7 {[%emt 0:00:04]} 35. Rc1 {
[%emt 0:00:38]} g6 {[%emt 0:00:03]} 36. Rc8+ {[%emt 0:00:29]} Kg7 {[%emt 0:00:
01]} 37. Rb8 {[%emt 0:00:01]} f5 {[%emt 0:00:32]} 38. Bxb7 {[%emt 0:01:00]}
Re3+ {[%emt 0:00:15]} 39. Kg2 {[%emt 0:00:16]} Re2+ {[%emt 0:00:03]} 40. Kf3 {
[%emt 0:00:05]} Rf2+ {[%emt 0:00:06]} 0-1

[Event "Moscow-Open 2021_A"]
[Site "Moscow, Russia"]
[Date "2021.02.21"]
[Round "2.4"]
[White "Afanasiev, Nikita"]
[Black "Chetverik, Maxim"]
[Result "1-0"]
[ECO "A01"]
[WhiteElo "2519"]
[BlackElo "2159"]
[Annotator "zimin"]
[PlyCount "69"]
[EventDate "2021.??.??"]
[TimeControl "90+30"]
[WhiteClock "0:09:49"]
[BlackClock "0:00:39"]

{[%evp 0,53,27,-28,28,28,74,-2,14,15,15,16,16,-13,4,-8,-12,-12,-2,36,49,50,52,
47,73,70,86,91,82,77,89,93,127,102,102,135,138,138,123,122,125,136,154,164,164,
158,158,119,151,98,142,157,155,161,198,182]} 1. b3 {[%emt 0:00:00]} a5 {
[%emt 0:00:00]} 2. Bb2 {[%emt 0:00:00]} a4 {[%emt 0:00:00]} 3. b4 {[%emt 0:00:
00]} e6 {[%emt 0:00:00]} 4. a3 {[%emt 0:00:00]} d5 {[%emt 0:00:00]} 5. e3 {
[%emt 0:00:00]} Nf6 {[%emt 0:00:00]} 6. c4 {[%emt 0:00:00]} c5 {[%emt 0:00:00]}
7. cxd5 {[%emt 0:00:00]} exd5 {[%emt 0:00:00]} 8. Nf3 {[%emt 0:00:00]} Bd7 {
[%emt 0:00:00]} 9. Bxf6 {[%emt 0:00:00]} gxf6 {[%emt 0:00:00]} 10. bxc5 {
[%emt 0:00:00]} Bxc5 {[%emt 0:00:00]} 11. Nc3 {[%emt 0:00:00]} Bc6 {[%emt 0:00:
00]} 12. Bb5 {[%emt 0:00:00]} Bxb5 {[%emt 0:00:00]} 13. Nxb5 {[%emt 0:00:00]}
Qd7 {[%emt 0:00:00]} 14. Nc3 {[%emt 0:00:00]} Rg8 {[%emt 0:00:00]} 15. g3 {
[%emt 0:00:00]} Ra5 {[%emt 0:00:00]} 16. Qb1 {[%emt 0:00:00]} Rg7 {[%emt 0:00:
00]} 17. d4 {[%emt 0:00:00]} Be7 {[%emt 0:00:00]} 18. O-O {[%emt 0:00:00]} Nc6
{[%emt 0:00:00]} 19. Nh4 {[%emt 0:00:00]} h5 {[%emt 0:00:00]} 20. Qf5 {[%emt 0:
00:00]} Rg5 {[%emt 0:00:00]} 21. Qxd7+ {[%emt 0:00:00]} Kxd7 {[%emt 0:00:00]}
22. Rfb1 {[%emt 0:00:00]} Kc8 {[%emt 0:00:00]} 23. Ng2 {[%emt 0:00:00]} Bd6 {
[%emt 0:00:00]} 24. Rb5 {[%emt 0:00:00]} Rxb5 {[%emt 0:08:26]} 25. Nxb5 {
[%emt 0:00:00]} Bb8 {[%emt 0:00:22]} 26. Nc3 {[%emt 0:00:00]} Na5 {[%emt 0:01:
11]} 27. Nxa4 {[%emt 0:00:00]} Nc4 {[%emt 0:01:01]} 28. Nc3 {[%emt 0:00:00]}
Bd6 {[%emt 0:00:39]} 29. a4 {[%emt 0:00:00]} Kd7 {[%emt 0:02:46]} 30. Rb1 {
[%emt 0:00:00]} Kc6 {[%emt 0:00:11]} 31. Rb5 {[%emt 0:00:00]} Nb6 {[%emt 0:01:
01]} 32. Rb1 {[%emt 0:01:11]} Rg8 {[%emt 0:00:31]} 33. Rc1 {[%emt 0:07:19]} Nc4
{[%emt 0:01:03]} 34. e4 {[%emt 0:00:36]} Ba3 {[%emt 0:00:40]} 35. Rc2 {[%emt 0:
00:05]} 1-0

[Event "Moscow-Open 2021_A"]
[Site "Moscow, Russia"]
[Date "2021.02.21"]
[Round "2.5"]
[White "Sharikov, Alexander"]
[Black "Lobanov, Sergei"]
[Result "1/2-1/2"]
[ECO "B31"]
[WhiteElo "2170"]
[BlackElo "2516"]
[Annotator "zimin"]
[PlyCount "167"]
[EventDate "2021.??.??"]
[TimeControl "90+30"]
[WhiteClock "0:13:48"]
[BlackClock "0:04:34"]

{[%evp 0,51,27,13,46,47,22,45,48,48,63,30,38,43,30,33,34,25,43,34,30,16,9,20,
32,5,29,27,19,13,5,-28,-23,-36,-46,-57,-54,-59,-60,-56,-56,-48,-21,-85,-33,-76,
-62,-73,-72,-73,-79,-71,-68,-69]} 1. e4 {[%emt 0:00:00]} c5 {[%emt 0:00:00]} 2.
Nf3 {[%emt 0:00:00]} Nc6 {[%emt 0:00:00]} 3. Nc3 {[%emt 0:00:00]} Nf6 {[%emt 0:
00:00]} 4. Bb5 {[%emt 0:00:00]} g6 {[%emt 0:00:00]} 5. Bxc6 {[%emt 0:00:00]}
dxc6 {[%emt 0:00:00]} 6. d3 {[%emt 0:00:00]} Bg7 {[%emt 0:00:00]} 7. h3 {
[%emt 0:00:00]} Nd7 {[%emt 0:00:00]} 8. Be3 {[%emt 0:00:00]} e5 {[%emt 0:00:00]
} 9. a4 {[%emt 0:00:00]} a5 {[%emt 0:00:00]} 10. Nd2 {[%emt 0:00:00]} b6 {
[%emt 0:00:00]} 11. Nc4 {[%emt 0:00:00]} Ba6 {[%emt 0:00:00]} 12. Qd2 {[%emt 0:
00:00]} Bxc4 {[%emt 0:00:00]} 13. dxc4 {[%emt 0:00:00]} Nf8 {[%emt 0:00:00]}
14. Rd1 {[%emt 0:00:00]} Ne6 {[%emt 0:00:00]} 15. Qxd8+ {[%emt 0:00:00]} Rxd8 {
[%emt 0:00:00]} 16. Rxd8+ {[%emt 0:00:00]} Kxd8 {[%emt 0:00:00]} 17. Ne2 {
[%emt 0:00:00]} Kc7 {[%emt 0:00:00]} 18. c3 {[%emt 0:00:00]} f5 {[%emt 0:00:00]
} 19. exf5 {[%emt 0:00:00]} gxf5 {[%emt 0:00:00]} 20. f4 {[%emt 0:00:00]} h5 {
[%emt 0:00:00]} 21. O-O {[%emt 0:00:00]} Bh6 {[%emt 0:00:00]} 22. Bc1 {[%emt 0:
00:00]} e4 {[%emt 0:00:00]} 23. Ng3 {[%emt 0:00:00]} Ng7 {[%emt 0:00:00]} 24.
h4 {[%emt 0:00:00]} Rd8 {[%emt 0:00:00]} 25. Kf2 {[%emt 0:00:00]} Rd6 {[%emt 0:
00:00]} 26. Re1 {[%emt 0:00:00]} Rg6 {[%emt 0:00:00]} 27. Nf1 {[%emt 0:00:00]}
Ne6 {[%emt 0:00:00]} 28. g3 {[%emt 0:00:00]} Bf8 {[%emt 0:00:00]} 29. Ne3 {
[%emt 0:00:00]} Ng7 {[%emt 0:00:00]} 30. Rd1 {[%emt 0:00:00]} Rf6 {[%emt 0:00:
00]} 31. Rd2 {[%emt 0:00:00]} Rf7 {[%emt 0:00:00]} 32. Rd1 {[%emt 0:00:00]} Ne8
{[%emt 0:00:00]} 33. Rd2 {[%emt 0:00:00]} Nd6 {[%emt 0:00:00]} 34. Rd1 {
[%emt 0:00:00]} Kd7 {[%emt 0:00:00]} 35. Rd2 {[%emt 0:00:00]} Ke6 {[%emt 0:00:
00]} 36. Rd1 {[%emt 0:00:00]} Rb7 {[%emt 0:00:00]} 37. Rd2 {[%emt 0:00:00]} Be7
{[%emt 0:00:00]} 38. Rd1 {[%emt 0:00:00]} Bf6 {[%emt 0:00:00]} 39. Rd2 {
[%emt 0:00:00]} Rb8 {[%emt 0:01:14]} 40. Rd1 {[%emt 0:00:00]} Ne8 {[%emt 0:00:
10]} 41. Rd2 {[%emt 0:00:00]} Nc7 {[%emt 0:00:06]} 42. Rd1 {[%emt 0:00:00]} Ne8
{[%emt 0:01:18]} 43. Rd2 {[%emt 0:00:00]} Nd6 {[%emt 0:00:02]} 44. Rd1 {
[%emt 0:00:00]} Nf7 {[%emt 0:03:51]} 45. Rd2 {[%emt 0:00:00]} Nh6 {[%emt 0:00:
04]} 46. Rd1 {[%emt 0:00:00]} Rg8 {[%emt 0:00:03]} 47. Rd2 {[%emt 0:00:00]} Rc8
{[%emt 0:00:35]} 48. Rd1 {[%emt 0:00:00]} Be7 {[%emt 0:00:07]} 49. Rd2 {
[%emt 0:00:00]} Ng8 {[%emt 0:00:06]} 50. Rd1 {[%emt 0:00:00]} Nf6 {[%emt 0:00:
04]} 51. Rd2 {[%emt 0:00:00]} Rb8 {[%emt 0:00:04]} 52. Rd1 {[%emt 0:00:00]} Ra8
{[%emt 0:04:06]} 53. Rd2 {[%emt 0:00:00]} Re8 {[%emt 0:00:00]} 54. Rd1 {
[%emt 0:00:00]} Rh8 {[%emt 0:00:03]} 55. Rd2 {[%emt 0:00:00]} Rh7 {[%emt 0:00:
08]} 56. Rd1 {[%emt 0:00:00]} Rg7 {[%emt 0:00:04]} 57. Rd2 {[%emt 0:00:00]} Ne8
{[%emt 0:04:29]} 58. Rd1 {[%emt 0:00:00]} Nd6 {[%emt 0:00:04]} 59. Rd2 {
[%emt 0:00:00]} Rg8 {[%emt 0:00:06]} 60. Rd1 {[%emt 0:00:00]} Rb8 {[%emt 0:00:
08]} 61. Rd2 {[%emt 0:00:00]} Bf8 {[%emt 0:00:27]} 62. Rd1 {[%emt 0:00:00]} Rb7
{[%emt 0:00:06]} 63. Rd2 {[%emt 0:00:00]} Bg7 {[%emt 0:00:11]} 64. Rd1 {
[%emt 0:00:00]} Bh8 {[%emt 0:00:12]} 65. Rd2 {[%emt 0:00:00]} Bf6 {[%emt 0:00:
21]} 66. Rd1 {[%emt 0:00:00]} b5 {[%emt 0:00:07]} 67. cxb5 {[%emt 0:00:00]}
cxb5 {[%emt 0:00:30]} 68. Rd5 {[%emt 0:00:00]} bxa4 {[%emt 0:00:30]} 69. Rxc5 {
[%emt 0:00:00]} Rb5 {[%emt 0:00:30]} 70. Rc6 {[%emt 0:05:58]} Kd7 {[%emt 0:03:
42]} 71. Ra6 {[%emt 0:00:10]} a3 {[%emt 0:00:05]} 72. bxa3 {[%emt 0:00:16]}
Bxc3 {[%emt 0:00:30]} 73. Ke2 {[%emt 0:07:48]} Bd4 {[%emt 0:05:58]} 74. a4 {
[%emt 0:04:55]} Rb3 {[%emt 0:02:22]} 75. Nc2 {[%emt 0:02:06]} Bb6 {[%emt 0:01:
51]} 76. Be3 {[%emt 0:01:44]} Nc4 {[%emt 0:01:10]} 77. Bxb6 {[%emt 0:01:12]}
Rxb6 {[%emt 0:00:02]} 78. Ra7+ {[%emt 0:00:30]} Kd6 79. Nd4 {[%emt 0:00:30]}
Rb2+ {[%emt 0:01:00]} 80. Ke1 {[%emt 0:00:30]} Rb1+ {[%emt 0:00:30]} 81. Ke2 {
[%emt 0:00:30]} Rb2+ {[%emt 0:00:30]} 82. Ke1 {[%emt 0:00:30]} Rb1+ {[%emt 0:
00:30]} 83. Ke2 {[%emt 0:00:30]} Rb2+ {[%emt 0:00:30]} 84. Nc2 {[%emt 0:02:33]}
1/2-1/2

[Event "Moscow-Open 2021_A"]
[Site "Moscow, Russia"]
[Date "2021.02.21"]
[Round "2.6"]
[White "Maiorov, Nikita"]
[Black "Bazyrtsyrenov, Kirill"]
[Result "1/2-1/2"]
[ECO "E90"]
[WhiteElo "2495"]
[BlackElo "2156"]
[Annotator "zimin"]
[PlyCount "98"]
[EventDate "2021.??.??"]
[TimeControl "90+30"]
[WhiteClock "1:31:18"]
[BlackClock "1:31:20"]

{[%evp 0,70,25,25,35,-14,47,54,46,45,45,47,45,40,47,43,86,62,96,39,55,34,171,
163,169,125,126,108,153,133,149,149,170,115,107,115,89,103,107,101,98,100,102,
85,116,128,133,117,117,105,100,99,129,125,133,86,151,75,101,99,101,85,94,88,69,
43,38,22,27,30,135,134,132]} 1. d4 {[%emt 0:00:00]} Nf6 {[%emt 0:00:00]} 2. c4
{[%emt 0:00:06]} g6 3. Nc3 Bg7 4. e4 d6 5. Nf3 O-O 6. h3 c5 7. d5 e6 8. Bd3
exd5 9. exd5 Re8+ 10. Be3 Rxe3+ 11. fxe3 Qe7 12. Kf2 Nbd7 13. Rf1 Ne5 14. Nxe5
Qxe5 15. Qf3 Qe7 16. Kg1 Nd7 17. Bc2 Ne5 18. Qe2 Bd7 19. Ba4 Bxa4 20. Nxa4 Re8
21. Nc3 h5 22. Rae1 Bh6 23. Ne4 f5 24. Nd2 Nd7 25. Kh1 Nf6 26. Qd3 Qe5 27. Re2
h4 28. Rfe1 Nh5 29. Nf1 Nf6 30. Nd2 Nh5 31. Nf1 Nf6 32. Kg1 Ne4 33. Rc2 Re7 34.
a3 a5 35. Qb3 Ng3 36. Qc3 Nxf1 37. Qxe5 Rxe5 38. Kxf1 Bxe3 39. Ke2 f4 40. Kd3
Kf7 41. Rc3 Rg5 42. Rc2 a4 43. Ke4 Kf6 44. b3 Re5+ 45. Kf3 Rg5 46. Ke4 Re5+ 47.
Kf3 Rg5 48. Ke4 Re5+ 49. Kf3 {[%emt 0:00:00]} Rg5 {[%emt 0:00:00]} 1/2-1/2

[Event "Moscow-Open 2021_A"]
[Site "Moscow, Russia"]
[Date "2021.02.22"]
[Round "3.1"]
[White "Kardashevskiy, Evgeny"]
[Black "Rozum, Ivan"]
[Result "1/2-1/2"]
[ECO "E06"]
[WhiteElo "2427"]
[BlackElo "2546"]
[Annotator "zimin"]
[PlyCount "81"]
[EventDate "2021.??.??"]
[TimeControl "90+30"]
[WhiteClock "0:53:11"]
[BlackClock "0:56:17"]

{[%evp 0,81,32,19,19,19,18,-14,-16,-12,23,-4,43,31,43,43,52,16,29,68,66,58,39,
36,48,18,36,10,17,24,24,24,55,47,58,26,20,22,17,28,29,23,13,13,18,29,13,22,16,
0,14,10,27,34,34,55,58,59,57,52,62,52,45,53,53,47,52,7,0,0,4,-7,5,6,6,6,6,0,6,
6,16,15,8,8]} 1. d4 {[%emt 0:00:00]} d5 {[%emt 0:00:00]} 2. Nf3 {[%emt 0:00:00]
} Nf6 {[%emt 0:00:00]} 3. c4 {[%emt 0:00:00]} e6 {[%emt 0:00:00]} 4. Nc3 {
[%emt 0:00:00]} c6 {[%emt 0:00:00]} 5. g3 {[%emt 0:00:00]} Be7 {[%emt 0:00:00]}
6. Bg2 {[%emt 0:00:00]} O-O {[%emt 0:00:00]} 7. O-O {[%emt 0:00:00]} b6 {
[%emt 0:00:00]} 8. b3 {[%emt 0:00:00]} Ba6 {[%emt 0:00:00]} 9. Qd3 {[%emt 0:00:
00]} b5 {[%emt 0:00:00]} 10. cxb5 {[%emt 0:00:00]} cxb5 {[%emt 0:00:00]} 11.
Nxb5 {[%emt 0:00:00]} Qb6 {[%emt 0:00:00]} 12. a4 {[%emt 0:00:00]} Nc6 {
[%emt 0:00:00]} 13. Bf4 {[%emt 0:00:00]} Nb4 {[%emt 0:00:00]} 14. Qd2 {[%emt 0:
00:00]} Bxb5 {[%emt 0:00:00]} 15. axb5 {[%emt 0:00:00]} Qxb5 {[%emt 0:00:00]}
16. Rfc1 {[%emt 0:00:00]} Qb6 {[%emt 0:00:00]} 17. Bc7 {[%emt 0:00:00]} Qb7 {
[%emt 0:00:00]} 18. Ne5 {[%emt 0:00:00]} Rfc8 {[%emt 0:00:00]} 19. Ba5 {
[%emt 0:00:00]} Nc6 {[%emt 0:00:00]} 20. Nxc6 {[%emt 0:00:00]} Rxc6 {[%emt 0:
00:00]} 21. Rxc6 {[%emt 0:00:00]} Qxc6 {[%emt 0:00:00]} 22. Qc3 {[%emt 0:00:00]
} Qb7 {[%emt 0:00:00]} 23. Qc7 {[%emt 0:00:00]} Rb8 {[%emt 0:00:00]} 24. Rc1 {
[%emt 0:00:00]} Qxc7 {[%emt 0:00:00]} 25. Rxc7 {[%emt 0:00:00]} Bd6 {[%emt 0:
00:00]} 26. Rxa7 {[%emt 0:00:00]} Rxb3 {[%emt 0:00:00]} 27. Ra8+ {[%emt 0:00:
00]} Rb8 {[%emt 0:00:00]} 28. Rxb8+ {[%emt 0:00:00]} Bxb8 {[%emt 0:00:00]} 29.
e3 {[%emt 0:00:00]} Ne8 {[%emt 0:00:00]} 30. Bf1 {[%emt 0:00:00]} f5 {[%emt 0:
00:00]} 31. Bb5 {[%emt 0:00:00]} Kf7 {[%emt 0:00:00]} 32. Bb4 {[%emt 0:00:00]}
Nd6 {[%emt 0:00:00]} 33. Bxd6 {[%emt 0:00:00]} Bxd6 {[%emt 0:00:00]} 34. Kg2 {
[%emt 0:00:00]} Be7 {[%emt 0:00:00]} 35. Ba4 {[%emt 0:00:00]} Bf6 {[%emt 0:00:
00]} 36. Kf3 {[%emt 0:00:00]} Be7 {[%emt 0:00:00]} 37. Bb5 {[%emt 0:00:00]} Bd6
{[%emt 0:00:00]} 38. Ba4 {[%emt 0:00:00]} Kf6 {[%emt 0:00:00]} 39. h4 {[%emt 0:
00:00]} h5 {[%emt 0:00:00]} 40. Be8 {[%emt 0:00:00]} g6 {[%emt 0:00:00]} 41.
Ba4 {[%emt 0:00:00] Ke5 Ke4+} 1/2-1/2

[Event "Moscow-Open 2021_A"]
[Site "Moscow, Russia"]
[Date "2021.02.22"]
[Round "3.2"]
[White "Iljiushenok, Ilia"]
[Black "Smirnov, Timofey"]
[Result "1-0"]
[ECO "D37"]
[WhiteElo "2534"]
[BlackElo "2414"]
[Annotator "zimin"]
[PlyCount "79"]
[EventDate "2021.??.??"]
[TimeControl "90+30"]
[WhiteClock "0:10:08"]
[BlackClock "0:05:02"]

{[%evp 0,37,19,19,19,14,78,50,72,59,75,23,48,32,44,32,30,46,46,53,54,33,51,48,
54,28,62,69,91,40,62,41,109,98,110,96,102,87,115,84]} 1. d4 {[%emt 0:00:00]} d5
{[%emt 0:00:00]} 2. Bf4 {[%emt 0:00:00]} c5 {[%emt 0:00:00]} 3. e3 {[%emt 0:00:
00]} Nc6 {[%emt 0:00:00]} 4. Nf3 {[%emt 0:00:00]} Nf6 {[%emt 0:00:00]} 5. Be2 {
[%emt 0:00:00]} e6 {[%emt 0:00:00]} 6. O-O {[%emt 0:00:00]} Bd6 {[%emt 0:00:00]
} 7. dxc5 {[%emt 0:00:00]} Bxc5 {[%emt 0:00:00]} 8. c4 {[%emt 0:00:00]} O-O {
[%emt 0:00:00]} 9. Nc3 {[%emt 0:00:00]} a6 {[%emt 0:00:00]} 10. Rc1 {[%emt 0:
00:00]} d4 {[%emt 0:00:00]} 11. exd4 {[%emt 0:00:00]} Nxd4 {[%emt 0:00:00]} 12.
h3 {[%emt 0:00:00]} h6 {[%emt 0:00:00]} 13. a3 {[%emt 0:00:00]} a5 {[%emt 0:00:
00]} 14. Nxd4 {[%emt 0:00:00]} Qxd4 {[%emt 0:00:00]} 15. Qxd4 {[%emt 0:00:00]}
Bxd4 {[%emt 0:00:00]} 16. Nb5 {[%emt 0:00:00]} e5 {[%emt 0:00:00]} 17. Nxd4 {
[%emt 0:00:00]} exf4 {[%emt 0:00:00]} 18. Bf3 {[%emt 0:00:00]} g5 {[%emt 0:00:
00]} 19. c5 {[%emt 0:00:00]} Kg7 {[%emt 0:00:00]} 20. Nb5 {[%emt 0:00:00]} h5 {
[%emt 0:00:00]} 21. Nd6 {[%emt 0:00:00]} Rb8 {[%emt 0:00:00]} 22. Rfd1 {
[%emt 0:00:00]} g4 {[%emt 0:00:00]} 23. hxg4 {[%emt 0:00:00]} hxg4 {[%emt 0:00:
00]} 24. Bd5 {[%emt 0:00:00]} Nxd5 {[%emt 0:00:00]} 25. Rxd5 {[%emt 0:00:00]}
Be6 {[%emt 0:00:00]} 26. Rd4 {[%emt 0:00:00]} f3 {[%emt 0:00:00]} 27. gxf3 {
[%emt 0:00:00]} gxf3 {[%emt 0:00:00]} 28. Rc3 {[%emt 0:00:00]} Rh8 {[%emt 0:00:
00]} 29. Rxf3 {[%emt 0:00:00]} Rh5 {[%emt 0:00:05]} 30. Ne4 {[%emt 0:01:00]}
Rh4 {[%emt 0:02:02]} 31. b4 {[%emt 0:04:17]} Kh8 {[%emt 0:02:15]} 32. Rfd3 {
[%emt 0:01:26]} axb4 {[%emt 0:01:33]} 33. axb4 {[%emt 0:00:10]} Ra8 {[%emt 0:
02:39]} 34. Ng5 {[%emt 0:01:23]} Rxd4 {[%emt 0:04:18]} 35. Rxd4 {[%emt 0:00:02]
} Bb3 {[%emt 0:01:54]} 36. Rd7 {[%emt 0:02:17]} Rg8 {[%emt 0:00:02]} 37. f4 {
[%emt 0:00:05]} Rg6 {[%emt 0:00:04]} 38. Kf2 {[%emt 0:00:27]} Rf6 {[%emt 0:00:
26]} 39. Ke3 {[%emt 0:00:11]} b6 {[%emt 0:00:40]} 40. Rd6 {[%emt 0:00:04]} 1-0

[Event "Moscow-Open 2021_A"]
[Site "Moscow, Russia"]
[Date "2021.02.22"]
[Round "3.3"]
[White "Assaubayeva, Bibisara"]
[Black "Afanasiev, Nikita"]
[Result "1/2-1/2"]
[ECO "D85"]
[WhiteElo "2378"]
[BlackElo "2519"]
[Annotator "zimin"]
[PlyCount "101"]
[EventDate "2021.??.??"]
[TimeControl "90+30"]
[WhiteClock "0:00:52"]
[BlackClock "0:01:26"]

{[%evp 0,54,19,19,45,-12,54,35,56,76,76,54,54,51,53,46,51,51,91,27,11,42,25,20,
17,6,45,43,43,43,54,47,88,83,46,46,46,49,49,60,93,2,3,40,48,41,41,8,16,0,37,-6,
-3,-3,43,35,35]} 1. d4 {[%emt 0:00:00]} Nf6 {[%emt 0:00:00]} 2. c4 {[%emt 0:00:
00]} g6 {[%emt 0:00:00]} 3. Nc3 {[%emt 0:00:00]} d5 {[%emt 0:00:00]} 4. cxd5 {
[%emt 0:00:00]} Nxd5 {[%emt 0:00:00]} 5. e4 {[%emt 0:00:00]} Nxc3 {[%emt 0:00:
00]} 6. bxc3 {[%emt 0:00:00]} Bg7 {[%emt 0:00:00]} 7. Be3 {[%emt 0:00:00]} c5 {
[%emt 0:00:00]} 8. Nf3 {[%emt 0:00:00]} Bg4 {[%emt 0:00:00]} 9. Qa4+ {[%emt 0:
00:00]} Nd7 {[%emt 0:00:00]} 10. Be2 {[%emt 0:00:00]} O-O {[%emt 0:00:00]} 11.
Rb1 {[%emt 0:00:00]} Nb6 {[%emt 0:00:00]} 12. Qd1 {[%emt 0:00:00]} Qc7 {
[%emt 0:00:00]} 13. O-O {[%emt 0:00:00]} Rfd8 {[%emt 0:00:00]} 14. Qd2 {
[%emt 0:00:00]} Bxf3 {[%emt 0:00:00]} 15. gxf3 {[%emt 0:00:00]} e5 {[%emt 0:00:
00]} 16. d5 {[%emt 0:00:00]} Nc8 {[%emt 0:00:00]} 17. f4 {[%emt 0:00:00]} Nd6 {
[%emt 0:00:00]} 18. Bd3 {[%emt 0:00:00]} c4 {[%emt 0:03:13]} 19. Bc2 {[%emt 0:
00:00]} Qa5 {[%emt 0:00:59]} 20. a4 {[%emt 0:00:00]} exf4 {[%emt 0:03:49]} 21.
Bxf4 {[%emt 0:00:00]} Qxc3 {[%emt 0:01:11]} 22. Qxc3 {[%emt 0:00:00]} Bxc3 {
[%emt 0:00:02]} 23. e5 {[%emt 0:00:00]} Nc8 {[%emt 0:00:03]} 24. Rfd1 {[%emt 0:
00:00]} Nb6 {[%emt 0:00:27]} 25. Rb5 {[%emt 0:00:00]} Nd7 {[%emt 0:01:42]} 26.
e6 {[%emt 0:00:00]} fxe6 {[%emt 0:00:36]} 27. dxe6 {[%emt 0:00:00]} Nf6 {
[%emt 0:00:06]} 28. Rxb7 {[%emt 0:00:00]} Rxd1+ {[%emt 0:02:47]} 29. Bxd1 {
[%emt 0:00:00]} Rc8 {[%emt 0:00:27]} 30. Rxa7 {[%emt 0:00:00]} Bd4 {[%emt 0:00:
25]} 31. Rb7 {[%emt 0:01:37]} Rc6 {[%emt 0:00:31]} 32. Be2 {[%emt 0:02:56]} c3
{[%emt 0:00:34]} 33. Bh6 {[%emt 0:04:59]} Rc8 {[%emt 0:00:19]} 34. Ba6 {
[%emt 0:01:51]} Ng4 {[%emt 0:00:21]} 35. Rd7 {[%emt 0:00:41]} Re8 {[%emt 0:00:
44]} 36. Rxd4 {[%emt 0:00:58]} Nxh6 {[%emt 0:00:04]} 37. Rd3 {[%emt 0:00:24]}
Kg7 {[%emt 0:00:23]} 38. Rxc3 {[%emt 0:01:53]} Rxe6 {[%emt 0:00:03]} 39. Rc7+ {
[%emt 0:00:08]} Kf6 {[%emt 0:00:07]} 40. Bc4 {[%emt 0:02:09]} Re1+ {[%emt 0:00:
13]} 41. Kg2 {[%emt 0:00:01]} Ra1 {[%emt 0:00:12]} 42. Ra7 {[%emt 0:01:32]} Ng4
{[%emt 0:01:02]} 43. a5 {[%emt 0:01:10]} Ne5 {[%emt 0:00:32]} 44. Bf1 {[%emt 0:
00:54]} Ra2 {[%emt 0:00:04]} 45. h3 {[%emt 0:00:23]} h5 {[%emt 0:00:44]} 46. a6
{[%emt 0:00:19]} Ke6 {[%emt 0:01:51]} 47. Rg7 {[%emt 0:00:33]} Kd6 {[%emt 0:00:
47]} 48. Kg3 {[%emt 0:01:54]} Ra3+ {[%emt 0:00:31]} 49. Kg2 {[%emt 0:00:30]}
Ra2 {[%emt 0:00:05]} 50. Bb5 {[%emt 0:00:35]} Kc5 {[%emt 0:00:10]} 51. Bf1 {
[%emt 0:00:41]} 1/2-1/2